[Event "32nd NATO Chess Championship"]
[Site "Tartu, Estonia"]
[Date "2022.06.30"]
[Round "5.16"]
[White "Sauer, Marko"]
[Black "Pazeriene, Diana"]
[Result "0-1"]
[TimeControl "90 min + 30 sec increment from move one"]
[WhiteFideId "1270766"]
[BlackFideId "12802190"]
[WhiteElo "2065"]
[BlackElo "1930"]

1. e4 {[%clk 01:30:56]} {[%emt 00:00:03]} c6 {[%clk 01:30:55]} {[%emt
00:00:05]} 2. d4 {[%clk 01:31:08]} {[%emt 00:00:19]} d5 {[%clk 01:31:20]}
{[%emt 00:00:05]} 3. Nc3 {[%clk 01:30:58]} {[%emt 00:00:40]} dxe4 {[%clk
01:31:13]} {[%emt 00:00:37]} 4. Nxe4 {[%clk 01:31:20]} {[%emt 00:00:09]} Bf5
{[%clk 01:29:52]} {[%emt 00:01:50]} 5. Ng3 {[%clk 01:30:34]} {[%emt 00:01:16]}
Bg6 {[%clk 01:30:11]} {[%emt 00:00:12]} 6. h4 {[%clk 01:29:12]} {[%emt
00:01:52]} h6 {[%clk 01:30:17]} {[%emt 00:00:24]} 7. h5 {[%clk 01:28:26]}
{[%emt 00:01:15]} Bh7 {[%clk 01:30:30]} {[%emt 00:00:17]} 8. Nf3 {[%clk
01:28:22]} {[%emt 00:00:35]} e6 {[%clk 01:25:06]} {[%emt 00:05:54]} 9. Bd3
{[%clk 01:22:42]} {[%emt 00:06:09]} Bxd3 {[%clk 01:24:56]} {[%emt 00:00:41]} 10.
Qxd3 {[%clk 01:23:05]} {[%emt 00:00:07]} Nf6 {[%clk 01:24:34]} {[%emt
00:00:52]} 11. Bd2 {[%clk 01:18:36]} {[%emt 00:04:58]} Nbd7 {[%clk 01:23:26]}
{[%emt 00:01:39]} 12. c4 {[%clk 01:08:52]} {[%emt 00:10:14]} Bd6 {[%clk
01:18:19]} {[%emt 00:05:36]} 13. Ne4 {[%clk 01:02:24]} {[%emt 00:06:58]} Nxe4
{[%clk 01:18:01]} {[%emt 00:00:48]} 14. Qxe4 {[%clk 01:02:48]} {[%emt
00:00:06]} Nf6 {[%clk 01:17:52]} {[%emt 00:00:39]} 15. Qc2 {[%clk 01:01:08]}
{[%emt 00:02:10]} Qc7 {[%clk 01:12:28]} {[%emt 00:05:55]} 16. Bc3 {[%clk
00:53:16]} {[%emt 00:08:21]} b5 {[%clk 01:02:20]} {[%emt 00:10:39]} 17. c5
{[%clk 00:49:08]} {[%emt 00:04:38]} Bf4 {[%clk 01:02:37]} {[%emt 00:00:12]} 18.
g3 {[%clk 00:42:47]} {[%emt 00:06:52]} Bg5 {[%clk 01:03:01]} {[%emt 00:00:06]}
19. a4 {[%clk 00:37:35]} {[%emt 00:05:43]} a5 {[%clk 00:52:49]} {[%emt
00:10:41]} 20. axb5 {[%clk 00:33:27]} {[%emt 00:04:38]} cxb5 {[%clk 00:53:13]}
{[%emt 00:00:05]} 21. Ne5 {[%clk 00:31:55]} {[%emt 00:02:02]} Nd5 {[%clk
00:45:41]} {[%emt 00:08:02]} 22. Qe2 {[%clk 00:28:15]} {[%emt 00:04:10]} Qb7
{[%clk 00:29:52]} {[%emt 00:16:19]} 23. O-O {[%clk 00:26:06]} {[%emt 00:02:39]}
b4 {[%clk 00:28:38]} {[%emt 00:01:44]} 24. Bd2 {[%clk 00:24:43]} {[%emt
00:01:54]} Bxd2 {[%clk 00:27:17]} {[%emt 00:01:51]} 25. Qxd2 {[%clk 00:25:07]}
{[%emt 00:00:05]} O-O {[%clk 00:24:24]} {[%emt 00:03:23]} 26. Ra4 {[%clk
00:23:51]} {[%emt 00:01:46]} Qc7 {[%clk 00:19:17]} {[%emt 00:05:36]} 27. Rfa1
{[%clk 00:23:43]} {[%emt 00:00:39]} Ne7 {[%clk 00:18:28]} {[%emt 00:01:19]} 28.
Nc4 {[%clk 00:20:07]} {[%emt 00:04:06]} Nc6 {[%clk 00:18:05]} {[%emt 00:00:53]}
29. d5 {[%clk 00:16:49]} {[%emt 00:03:48]} exd5 {[%clk 00:16:17]} {[%emt
00:02:18]} 30. Qxd5 {[%clk 00:17:05]} {[%emt 00:00:14]} Rad8 {[%clk 00:08:49]}
{[%emt 00:07:58]} 31. Nd6 {[%clk 00:14:23]} {[%emt 00:03:12]} Rfe8 {[%clk
00:09:05]} {[%emt 00:00:14]} 32. Nxe8 {[%clk 00:08:05]} {[%emt 00:06:49]} Rxe8
{[%clk 00:09:25]} {[%emt 00:00:10]} 33. Qd6 {[%clk 00:08:00]} {[%emt 00:00:34]}
Qc8 {[%clk 00:09:35]} {[%emt 00:00:21]} 34. Rc1 {[%clk 00:05:45]} {[%emt
00:02:45]} Rd8 {[%clk 00:08:04]} {[%emt 00:02:00]} 35. Qf4 {[%clk 00:05:09]}
{[%emt 00:01:06]} Nd4 {[%clk 00:08:17]} {[%emt 00:00:18]} 36. Re1 {[%clk
00:04:30]} {[%emt 00:01:08]} Qc6 {[%clk 00:08:37]} {[%emt 00:00:11]} 37. Raa1
{[%clk 00:03:03]} {[%emt 00:01:56]} Nf3+ {[%clk 00:08:59]} {[%emt 00:00:08]} 38.
Kf1 {[%clk 00:03:15]} {[%emt 00:00:17]} Nxe1 {[%clk 00:09:02]} {[%emt
00:00:28]} 39. Rxe1 {[%clk 00:03:26]} {[%emt 00:00:19]} Qh1+ {[%clk 00:09:24]}
{[%emt 00:00:07]} 40. Ke2 {[%clk 00:03:17]} {[%emt 00:00:40]} Re8+ {[%clk
00:09:50]} {[%emt 00:00:05]} 41. Qe3 {[%clk 00:02:30]} {[%emt 00:01:16]} Rxe3+
{[%clk 00:10:14]} {[%emt 00:00:06]} 42. fxe3 {[%clk 00:02:53]} {[%emt
00:00:07]} Qxh5+ {[%clk 00:10:35]} {[%emt 00:00:09]} 0-1

[Event "32nd NATO Chess Championship"]
[Site "Tartu, Estonia"]
[Date "2022.06.30"]
[Round "5.18"]
[White "Flaata, Alexander R."]
[Black "Farrell, John"]
[Result "1-0"]
[TimeControl "90 min + 30 sec increment from move one"]
[WhiteFideId "1502026"]
[BlackFideId "2024608"]
[WhiteElo "2048"]
[BlackElo "1913"]

1. d4 {[%clk 01:30:57]} {[%emt 00:00:03]} d5 {[%clk 01:30:54]} {[%emt
00:00:06]} 2. Nc3 {[%clk 01:31:07]} {[%emt 00:00:19]} Nf6 {[%clk 01:31:17]}
{[%emt 00:00:07]} 3. Bf4 {[%clk 01:31:31]} {[%emt 00:00:06]} a6 {[%clk
01:31:28]} {[%emt 00:00:21]} 4. e3 {[%clk 01:31:29]} {[%emt 00:00:30]} e6
{[%clk 01:30:24]} {[%emt 00:01:36]} 5. g4 {[%clk 01:30:11]} {[%emt 00:01:47]}
Bd6 {[%clk 01:28:34]} {[%emt 00:02:21]} 6. Bxd6 {[%clk 01:20:50]} {[%emt
00:09:51]} Qxd6 {[%clk 01:28:53]} {[%emt 00:00:11]} 7. g5 {[%clk 01:20:58]}
{[%emt 00:00:22]} Ng8 {[%clk 01:26:01]} {[%emt 00:03:21]} 8. Nf3 {[%clk
01:18:17]} {[%emt 00:03:10]} Nc6 {[%clk 01:18:52]} {[%emt 00:07:40]} 9. a3
{[%clk 01:16:21]} {[%emt 00:02:26]} Bd7 {[%clk 01:16:13]} {[%emt 00:03:09]} 10.
Qd2 {[%clk 01:11:15]} {[%emt 00:05:35]} Nge7 {[%clk 01:02:17]} {[%emt
00:14:26]} 11. Bd3 {[%clk 01:04:40]} {[%emt 00:07:05]} e5 {[%clk 01:00:31]}
{[%emt 00:02:17]} 12. dxe5 {[%clk 01:02:02]} {[%emt 00:03:07]} Nxe5 {[%clk
01:00:51]} {[%emt 00:00:10]} 13. Nxe5 {[%clk 01:02:19]} {[%emt 00:00:14]} Qxe5
{[%clk 01:01:14]} {[%emt 00:00:07]} 14. f4 {[%clk 01:01:13]} {[%emt 00:01:36]}
Qd6 {[%clk 01:01:16]} {[%emt 00:00:27]} 15. O-O-O {[%clk 01:00:48]} {[%emt
00:00:55]} O-O-O {[%clk 01:00:42]} {[%emt 00:01:04]} 16. e4 {[%clk 00:58:33]}
{[%emt 00:02:45]} dxe4 {[%clk 00:55:20]} {[%emt 00:05:52]} 17. Nxe4 {[%clk
00:58:00]} {[%emt 00:01:02]} Qc6 {[%clk 00:55:27]} {[%emt 00:00:24]} 18. Ng3
{[%clk 00:53:25]} {[%emt 00:04:54]} Bg4 {[%clk 00:50:22]} {[%emt 00:05:46]} 19.
Rde1 {[%clk 00:53:24]} {[%emt 00:00:30]} Nf5 {[%clk 00:49:03]} {[%emt
00:01:50]} 20. Nxf5 {[%emt 00:02:30]} 1-0

[Event "32nd NATO Chess Championship"]
[Site "Tartu, Estonia"]
[Date "2022.06.30"]
[Round "5.19"]
[White "Schott, Guido"]
[Black "Tammisto, Janek"]
[Result "1/2-1/2"]
[TimeControl "90 min + 30 sec increment from move one"]
[WhiteFideId "4646746"]
[BlackFideId "4510950"]
[WhiteElo "2028"]
[BlackElo "1881"]

1. Nf3 {[%clk 01:30:51]} {[%emt 00:00:08]} Nf6 {[%clk 01:30:56]} {[%emt
00:00:05]} 2. c4 {[%clk 01:31:06]} {[%emt 00:00:15]} g6 {[%clk 01:31:21]}
{[%emt 00:00:04]} 3. Nc3 {[%clk 01:31:10]} {[%emt 00:00:26]} Bg7 {[%clk
01:31:44]} {[%emt 00:00:07]} 4. g3 {[%clk 01:31:22]} {[%emt 00:00:19]} b6
{[%clk 01:32:02]} {[%emt 00:00:12]} 5. e4 {[%clk 01:31:09]} {[%emt 00:00:44]}
d6 {[%clk 01:31:44]} {[%emt 00:00:48]} 6. Bg2 {[%clk 01:31:04]} {[%emt
00:00:35]} Bb7 {[%clk 01:32:02]} {[%emt 00:00:12]} 7. d3 {[%clk 01:30:36]}
{[%emt 00:00:59]} O-O {[%clk 01:31:46]} {[%emt 00:00:45]} 8. O-O {[%clk
01:29:54]} {[%emt 00:01:12]} c5 {[%clk 01:29:21]} {[%emt 00:02:55]} 9. Nh4
{[%clk 01:27:49]} {[%emt 00:02:35]} Nc6 {[%clk 01:25:24]} {[%emt 00:04:28]} 10.
f4 {[%clk 01:27:06]} {[%emt 00:01:13]} a6 {[%clk 01:21:30]} {[%emt 00:04:24]}
11. Be3 {[%clk 01:25:45]} {[%emt 00:01:51]} Nd7 {[%clk 01:16:14]} {[%emt
00:05:45]} 12. Qd2 {[%clk 01:24:39]} {[%emt 00:01:36]} Nd4 {[%clk 01:14:50]}
{[%emt 00:01:53]} 13. Rae1 {[%clk 01:19:41]} {[%emt 00:05:29]} Nb8 {[%clk
01:10:40]} {[%emt 00:04:40]} 14. f5 {[%clk 01:17:06]} {[%emt 00:03:05]} Nbc6
{[%clk 01:10:24]} {[%emt 00:00:46]} 15. Bh6 {[%clk 01:08:35]} {[%emt 00:09:01]}
Ne5 {[%clk 01:06:47]} {[%emt 00:04:06]} 16. Bxg7 {[%clk 01:07:32]} {[%emt
00:01:34]} Kxg7 {[%clk 01:07:13]} {[%emt 00:00:04]} 17. Ne2 {[%clk 01:06:44]}
{[%emt 00:01:19]} Nxe2+ {[%clk 01:05:06]} {[%emt 00:02:36]} 18. Rxe2 {[%clk
01:05:56]} {[%emt 00:01:18]} f6 {[%clk 01:04:11]} {[%emt 00:01:24]} 19. fxg6
{[%clk 01:02:42]} {[%emt 00:03:45]} hxg6 {[%clk 01:04:06]} {[%emt 00:00:34]} 20.
Nf3 {[%clk 00:57:13]} {[%emt 00:06:00]} b5 {[%clk 00:57:06]} {[%emt 00:07:31]}
21. b3 {[%clk 00:56:52]} {[%emt 00:00:50]} b4 {[%clk 00:56:38]} {[%emt
00:00:57]} 22. d4 {[%clk 00:55:32]} {[%emt 00:01:51]} Nxf3+ {[%clk 00:53:03]}
{[%emt 00:04:05]} 23. Bxf3 {[%clk 00:53:44]} {[%emt 00:02:17]} Qc7 {[%clk
00:51:53]} {[%emt 00:01:40]} 24. d5 {[%clk 00:52:59]} {[%emt 00:01:15]} 1/2-1/2

[Event "32nd NATO Chess Championship"]
[Site "Tartu, Estonia"]
[Date "2022.06.30"]
[Round "5.21"]
[White "Cirkvencic, Franci"]
[Black "Rosseel, Kimball"]
[Result "1-0"]
[TimeControl "90 min + 30 sec increment from move one"]
[WhiteFideId "14600528"]
[BlackFideId "233331"]
[WhiteElo "2000"]
[BlackElo "1831"]

1. d4 {[%clk 01:30:52]} {[%emt 00:00:07]} d6 {[%clk 01:30:52]} {[%emt
00:00:09]} 2. Nf3 {[%clk 01:31:12]} {[%emt 00:00:09]} g6 {[%clk 01:30:27]}
{[%emt 00:00:55]} 3. g3 {[%clk 01:31:27]} {[%emt 00:00:15]} Bg7 {[%clk
01:30:47]} {[%emt 00:00:11]} 4. Bg2 {[%clk 01:31:54]} {[%emt 00:00:04]} Nf6
{[%clk 01:27:48]} {[%emt 00:03:29]} 5. O-O {[%clk 01:32:08]} {[%emt 00:00:16]}
O-O {[%clk 01:28:13]} {[%emt 00:00:04]} 6. c4 {[%clk 01:32:31]} {[%emt
00:00:07]} Nbd7 {[%clk 01:23:48]} {[%emt 00:04:56]} 7. Nc3 {[%clk 01:32:52]}
{[%emt 00:00:08]} a6 {[%clk 01:23:35]} {[%emt 00:00:44]} 8. e4 {[%clk
01:30:49]} {[%emt 00:02:32]} e5 {[%clk 01:18:29]} {[%emt 00:05:37]} 9. h3
{[%clk 01:27:42]} {[%emt 00:03:36]} Rb8 {[%clk 01:15:33]} {[%emt 00:03:25]} 10.
a4 {[%clk 01:27:51]} {[%emt 00:00:22]} exd4 {[%clk 01:11:39]} {[%emt 00:04:24]}
11. Nxd4 {[%clk 01:28:12]} {[%emt 00:00:09]} Ne5 {[%clk 01:09:49]} {[%emt
00:02:20]} 12. b3 {[%clk 01:27:19]} {[%emt 00:01:22]} Bd7 {[%clk 01:08:10]}
{[%emt 00:02:10]} 13. Be3 {[%clk 01:25:44]} {[%emt 00:02:04]} c5 {[%clk
01:05:50]} {[%emt 00:02:52]} 14. Nde2 {[%clk 01:25:48]} {[%emt 00:00:25]} Qe7
{[%clk 01:03:38]} {[%emt 00:02:42]} 15. Ra2 {[%clk 01:18:57]} {[%emt 00:07:20]}
Rbd8 {[%clk 00:59:54]} {[%emt 00:04:14]} 16. Bg5 {[%clk 01:17:19]} {[%emt
00:02:08]} h6 {[%clk 00:55:03]} {[%emt 00:05:21]} 17. Nd5 {[%clk 01:17:40]}
{[%emt 00:00:09]} Qe6 {[%clk 00:54:23]} {[%emt 00:01:10]} 18. Nef4 {[%clk
01:17:04]} {[%emt 00:01:06]} Qxd5 {[%clk 00:51:10]} {[%emt 00:03:44]} 19. Nxd5
{[%clk 01:16:43]} {[%emt 00:00:51]} hxg5 {[%clk 00:51:34]} {[%emt 00:00:05]} 20.
Nxf6+ {[%clk 01:16:39]} {[%emt 00:00:35]} Bxf6 {[%clk 00:50:49]} {[%emt
00:01:15]} 21. Qxd6 {[%clk 01:16:42]} {[%emt 00:00:27]} Be6 {[%clk 00:49:41]}
{[%emt 00:01:37]} 22. Qxc5 {[%clk 01:16:31]} {[%emt 00:00:41]} Rc8 {[%clk
00:49:58]} {[%emt 00:00:13]} 23. Qe3 {[%clk 01:15:51]} {[%emt 00:01:09]} Nxc4
{[%clk 00:48:49]} {[%emt 00:01:40]} 24. bxc4 {[%clk 01:13:02]} {[%emt
00:03:19]} Bxc4 {[%clk 00:48:53]} {[%emt 00:00:27]} 25. Rd2 {[%clk 01:12:55]}
{[%emt 00:00:35]} Bxf1 {[%clk 00:48:29]} {[%emt 00:00:56]} 26. Bxf1 {[%clk
01:13:14]} {[%emt 00:00:11]} Rb8 {[%clk 00:42:42]} {[%emt 00:06:17]} 27. Rd6
{[%clk 01:02:48]} {[%emt 00:10:55]} Be7 {[%clk 00:37:53]} {[%emt 00:05:20]} 28.
Rd7 {[%clk 01:02:33]} {[%emt 00:00:44]} Rfe8 {[%clk 00:33:43]} {[%emt
00:04:40]} 29. Qb6 {[%clk 01:02:32]} {[%emt 00:00:31]} Kf8 {[%clk 00:32:12]}
{[%emt 00:02:02]} 30. Rxb7 {[%clk 01:00:13]} {[%emt 00:02:48]} Rxb7 {[%clk
00:31:45]} {[%emt 00:00:57]} 31. Qxb7 {[%clk 01:00:36]} {[%emt 00:00:07]} a5
{[%clk 00:32:08]} {[%emt 00:00:08]} 32. Bc4 {[%clk 01:00:06]} {[%emt 00:00:58]}
Rd8 {[%clk 00:30:57]} {[%emt 00:01:42]} 33. Bd5 {[%clk 01:00:04]} {[%emt
00:00:32]} f5 {[%clk 00:28:58]} {[%emt 00:02:30]} 34. Qa6 {[%clk 00:59:35]}
{[%emt 00:00:59]} fxe4 {[%clk 00:27:02]} {[%emt 00:02:26]} 35. Qe6 {[%clk
00:59:53]} {[%emt 00:00:10]} Ke8 {[%clk 00:26:44]} {[%emt 00:00:49]} 36. Qxg6+
{[%clk 00:59:21]} {[%emt 00:01:02]} 1-0

[Event "32nd NATO Chess Championship"]
[Site "Tartu, Estonia"]
[Date "2022.06.30"]
[Round "5.22"]
[White "Nielsen, Jan Mose"]
[Black "Ivbulis, Martins"]
[Result "0-1"]
[TimeControl "90 min + 30 sec increment from move one"]
[WhiteFideId "1405306"]
[BlackFideId "11603496"]
[WhiteElo "1991"]
[BlackElo "1815"]

1. d4 {[%clk 01:30:57]} {[%emt 00:00:02]} d5 {[%clk 01:30:54]} {[%emt
00:00:06]} 2. Nf3 {[%clk 01:31:14]} {[%emt 00:00:12]} e6 {[%clk 01:31:01]}
{[%emt 00:00:24]} 3. c4 {[%clk 01:28:23]} {[%emt 00:03:23]} a6 {[%clk
01:30:53]} {[%emt 00:00:38]} 4. Nc3 {[%clk 01:26:34]} {[%emt 00:02:19]} dxc4
{[%clk 01:27:59]} {[%emt 00:03:23]} 5. a4 {[%clk 01:20:57]} {[%emt 00:06:07]}
Nc6 {[%clk 01:27:55]} {[%emt 00:00:34]} 6. e3 {[%clk 01:16:41]} {[%emt
00:04:47]} Na5 {[%clk 01:27:57]} {[%emt 00:00:28]} 7. Nd2 {[%clk 01:14:35]}
{[%emt 00:02:36]} Nf6 {[%clk 01:27:38]} {[%emt 00:00:49]} 8. Nxc4 {[%clk
01:12:15]} {[%emt 00:02:49]} c5 {[%clk 01:27:26]} {[%emt 00:00:43]} 9. Nxa5
{[%clk 00:42:42]} {[%emt 00:30:03]} Qxa5 {[%clk 01:27:46]} {[%emt 00:00:10]} 10.
Bd2 {[%clk 00:42:47]} {[%emt 00:00:25]} cxd4 {[%clk 01:24:33]} {[%emt
00:03:42]} 11. Nb5 {[%clk 00:37:30]} {[%emt 00:05:47]} Bb4 {[%clk 01:21:31]}
{[%emt 00:03:33]} 12. Nxd4 {[%clk 00:37:51]} {[%emt 00:00:09]} Bxd2+ {[%clk
01:09:01]} {[%emt 00:13:00]} 13. Qxd2 {[%clk 00:37:37]} {[%emt 00:00:43]} Qxd2+
{[%clk 01:09:19]} {[%emt 00:00:12]} 14. Kxd2 {[%clk 00:37:56]} {[%emt
00:00:12]} Ne4+ {[%clk 01:09:36]} {[%emt 00:00:13]} 15. Ke2 {[%clk 00:36:29]}
{[%emt 00:01:56]} e5 {[%clk 01:02:50]} {[%emt 00:07:16]} 16. Nc2 {[%clk
00:33:24]} {[%emt 00:03:35]} Be6 {[%clk 01:02:20]} {[%emt 00:01:01]} 17. f3
{[%clk 00:32:57]} {[%emt 00:00:55]} Rc8 {[%clk 00:58:11]} {[%emt 00:04:40]} 18.
Ne1 {[%clk 00:30:35]} {[%emt 00:02:52]} Bc4+ {[%clk 00:58:23]} 0-1

[Event "32nd NATO Chess Championship"]
[Site "Tartu, Estonia"]
[Date "2022.06.30"]
[Round "5.23"]
[White "Van Den Heuvel, Tonnie"]
[Black "Aagaard, Gert"]
[Result "1/2-1/2"]
[TimeControl "90 min + 30 sec increment from move one"]
[WhiteFideId "1012924"]
[BlackFideId "1427024"]
[WhiteElo "1799"]
[BlackElo "1979"]

1. b3 {[%clk 01:30:55]} {[%emt 00:00:04]} d5 {[%clk 01:30:27]} {[%emt
00:00:34]} 2. Bb2 {[%clk 01:31:13]} {[%emt 00:00:11]} Bg4 {[%clk 01:30:34]}
{[%emt 00:00:24]} 3. Nf3 {[%clk 01:29:45]} {[%emt 00:01:59]} e6 {[%clk
01:30:33]} {[%emt 00:00:31]} 4. e3 {[%clk 01:29:53]} {[%emt 00:00:22]} Nf6
{[%clk 01:30:58]} {[%emt 00:00:04]} 5. d4 {[%clk 01:29:39]} {[%emt 00:00:42]}
Nbd7 {[%clk 01:30:24]} {[%emt 00:01:01]} 6. Be2 {[%clk 01:28:38]} {[%emt
00:01:37]} Be7 {[%clk 01:29:44]} {[%emt 00:01:09]} 7. O-O {[%clk 01:28:52]}
{[%emt 00:00:16]} O-O {[%clk 01:29:30]} {[%emt 00:00:42]} 8. Nbd2 {[%clk
01:24:36]} {[%emt 00:04:48]} Re8 {[%clk 01:28:41]} {[%emt 00:01:20]} 9. c4
{[%clk 01:24:20]} {[%emt 00:00:44]} c6 {[%clk 01:28:26]} {[%emt 00:00:46]} 10.
Re1 {[%clk 01:23:20]} {[%emt 00:01:29]} Rc8 {[%clk 01:27:05]} {[%emt 00:01:53]}
11. Qc2 {[%clk 01:22:05]} {[%emt 00:01:44]} Bd6 {[%clk 01:23:02]} {[%emt
00:04:33]} 12. Ne5 {[%clk 01:20:43]} {[%emt 00:01:52]} Bxe2 {[%clk 01:19:02]}
{[%emt 00:04:30]} 13. Rxe2 {[%clk 01:20:58]} {[%emt 00:00:15]} Bxe5 {[%emt
00:01:30]} 14. dxe5 {[%clk 01:20:56]} {[%emt 00:00:28]} Ng4 {[%clk 01:17:55]}
{[%emt 00:00:41]} 15. f4 {[%clk 01:17:56]} {[%emt 00:03:30]} f6 {[%clk
01:14:19]} {[%emt 00:04:05]} 16. h3 {[%clk 01:17:05]} {[%emt 00:01:22]} Nh6
{[%clk 01:14:43]} {[%emt 00:00:05]} 17. Nf3 {[%clk 01:16:15]} {[%emt 00:01:21]}
Nc5 {[%clk 01:13:57]} {[%emt 00:01:16]} 18. Nd2 {[%clk 01:08:31]} {[%emt
00:08:14]} f5 {[%clk 01:09:28]} {[%emt 00:05:00]} 19. cxd5 {[%clk 01:01:57]}
{[%emt 00:07:04]} cxd5 {[%clk 01:08:46]} {[%emt 00:01:11]} 20. Rc1 {[%clk
01:01:18]} {[%emt 00:01:09]} Rc6 {[%clk 00:58:02]} {[%emt 00:11:13]} 21. Qb1
{[%clk 00:56:53]} {[%emt 00:04:55]} Qd7 {[%clk 00:55:43]} {[%emt 00:02:50]} 22.
Nf3 {[%clk 00:56:30]} {[%emt 00:00:52]} Ne4 {[%clk 00:55:29]} {[%emt 00:00:44]}
23. Nd4 {[%clk 00:55:13]} {[%emt 00:01:48]} Rxc1+ {[%clk 00:55:04]} {[%emt
00:00:55]} 24. Qxc1 {[%clk 00:55:28]} {[%emt 00:00:15]} Rc8 {[%clk 00:55:08]}
{[%emt 00:00:25]} 25. Rc2 {[%clk 00:55:28]} {[%emt 00:00:30]} Rxc2 {[%clk
00:55:34]} {[%emt 00:00:05]} 26. Qxc2 {[%clk 00:55:47]} {[%emt 00:00:10]} Nf7
{[%clk 00:55:44]} {[%emt 00:00:20]} 27. g4 {[%clk 00:54:22]} {[%emt 00:01:55]}
g6 {[%clk 00:55:20]} {[%emt 00:00:54]} 28. Ba3 {[%clk 00:52:47]} {[%emt
00:02:06]} Nd8 {[%clk 00:53:57]} {[%emt 00:01:52]} 29. gxf5 {[%clk 00:47:31]}
{[%emt 00:05:47]} gxf5 {[%clk 00:54:13]} {[%emt 00:00:13]} 30. Qg2+ {[%clk
00:46:39]} {[%emt 00:01:22]} Qg7 {[%clk 00:53:15]} {[%emt 00:01:29]} 31. Qxg7+
{[%clk 00:44:25]} {[%emt 00:02:41]} Kxg7 {[%clk 00:53:43]} {[%emt 00:00:04]} 32.
Be7 {[%clk 00:35:47]} {[%emt 00:09:08]} Nc6 {[%clk 00:53:31]} {[%emt 00:00:43]}
33. Nxc6 {[%clk 00:35:58]} {[%emt 00:00:19]} bxc6 {[%clk 00:53:56]} {[%emt
00:00:05]} 34. b4 {[%clk 00:33:04]} {[%emt 00:03:24]} Kf7 {[%clk 00:54:13]}
{[%emt 00:00:13]} 35. Bc5 {[%clk 00:33:00]} {[%emt 00:00:34]} a6 {[%clk
00:54:38]} {[%emt 00:00:06]} 36. a4 {[%clk 00:33:06]} {[%emt 00:00:23]} Ke8
{[%clk 00:50:14]} {[%emt 00:04:54]} 37. a5 {[%clk 00:32:56]} {[%emt 00:00:40]}
Kf7 {[%clk 00:49:24]} {[%emt 00:01:19]} 38. Kg2 {[%clk 00:33:10]} {[%emt
00:00:15]} Kg6 {[%clk 00:49:40]} {[%emt 00:00:16]} 39. Be7 {[%clk 00:32:17]}
{[%emt 00:01:23]} Nc3 {[%clk 00:49:21]} {[%emt 00:00:48]} 40. Bc5 {[%clk
00:32:03]} {[%emt 00:00:44]} Kh5 {[%clk 00:49:31]} {[%emt 00:00:21]} 41. Kh2
{[%clk 00:31:01]} {[%emt 00:01:32]} Ne2 {[%clk 00:48:59]} {[%emt 00:01:02]} 42.
Kg2 {[%clk 00:30:53]} {[%emt 00:00:38]} Nc3 {[%clk 00:47:07]} {[%emt 00:02:21]}
43. Kh2 {[%clk 00:31:00]} {[%emt 00:00:23]} Nb5 {[%clk 00:47:12]} {[%emt
00:00:25]} 44. Kg2 {[%clk 00:31:04]} {[%emt 00:00:26]} Na3 {[%clk 00:47:41]}
{[%emt 00:00:02]} 45. Kh2 {[%clk 00:30:45]} {[%emt 00:00:49]} Nc2 {[%clk
00:48:05]} {[%emt 00:00:06]} 46. Kg3 {[%clk 00:30:05]} {[%emt 00:01:09]} Ne1
{[%clk 00:48:19]} {[%emt 00:00:15]} 47. Kf2 {[%clk 00:28:58]} {[%emt 00:01:38]}
Nd3+ {[%clk 00:48:21]} {[%emt 00:00:28]} 48. Kg3 {[%clk 00:28:46]} {[%emt
00:00:41]} h6 {[%clk 00:47:54]} {[%emt 00:00:58]} 49. Be7 {[%clk 00:26:47]}
{[%emt 00:02:30]} Kg6 {[%clk 00:42:50]} {[%emt 00:05:34]} 50. Bc5 {[%clk
00:26:59]} {[%emt 00:00:18]} Nc1 {[%clk 00:42:37]} {[%emt 00:00:43]} 51. Kf2
{[%clk 00:26:13]} {[%emt 00:01:15]} Kf7 {[%clk 00:41:28]} {[%emt 00:01:39]} 52.
Kg3 {[%clk 00:26:10]} {[%emt 00:00:33]} Kg7 {[%clk 00:41:36]} {[%emt 00:00:23]}
53. Kf2 {[%clk 00:26:27]} {[%emt 00:00:12]} Kg6 {[%clk 00:41:51]} {[%emt
00:00:15]} 54. Kg3 {[%clk 00:26:42]} {[%emt 00:00:16]} Kh5 {[%clk 00:42:12]}
{[%emt 00:00:08]} 55. Kg2 {[%clk 00:25:57]} {[%emt 00:01:15]} Nb3 {[%clk
00:41:17]} {[%emt 00:01:25]} 56. Kg3 {[%clk 00:26:14]} {[%emt 00:00:13]} Nd2
{[%clk 00:40:31]} {[%emt 00:01:16]} 57. Kg2 {[%clk 00:26:20]} {[%emt 00:00:24]}
Ne4 {[%clk 00:38:18]} {[%emt 00:02:43]} 58. Kh2 {[%clk 00:26:08]} {[%emt
00:00:41]} Nf2 {[%clk 00:37:39]} {[%emt 00:01:11]} 59. Kg2 {[%clk 00:25:45]}
{[%emt 00:00:53]} Nd3 {[%clk 00:38:01]} {[%emt 00:00:08]} 60. Kg3 {[%clk
00:25:43]} {[%emt 00:00:31]} Kg6 {[%clk 00:38:24]} {[%emt 00:00:07]} 61. Kf3
{[%clk 00:25:32]} {[%emt 00:00:41]} Kf7 {[%clk 00:37:00]} {[%emt 00:01:54]} 62.
Ke2 {[%clk 00:25:20]} {[%emt 00:00:40]} Nc1+ {[%clk 00:35:50]} {[%emt
00:01:41]} 63. Kf2 {[%clk 00:24:36]} {[%emt 00:01:15]} Ke8 {[%clk 00:35:52]}
{[%emt 00:00:28]} 64. Kf3 {[%clk 00:24:55]} {[%emt 00:00:11]} Nd3 {[%clk
00:30:49]} {[%emt 00:05:34]} 65. Ke2 {[%clk 00:25:04]} {[%emt 00:00:21]} Nb2
{[%clk 00:31:04]} {[%emt 00:00:14]} 66. Kf3 {[%clk 00:25:06]} {[%emt 00:00:28]}
Kf7 {[%clk 00:31:27]} {[%emt 00:00:06]} 67. Kg3 {[%clk 00:25:01]} {[%emt
00:00:36]} Nc4 {[%clk 00:31:33]} {[%emt 00:00:24]} 68. Kf3 {[%clk 00:24:52]}
{[%emt 00:00:38]} h5 {[%clk 00:29:53]} {[%emt 00:02:11]} 69. h4 {[%clk
00:24:54]} {[%emt 00:00:29]} Ke8 {[%clk 00:28:58]} {[%emt 00:01:24]} 70. Kg3
{[%clk 00:24:57]} {[%emt 00:00:26]} Kd7 {[%clk 00:27:31]} {[%emt 00:01:59]} 71.
Kf3 {[%clk 00:25:12]} {[%emt 00:00:15]} Nd2+ {[%clk 00:27:54]} {[%emt
00:00:07]} 72. Ke2 {[%clk 00:25:14]} {[%emt 00:00:27]} Nc4 {[%clk 00:24:06]}
{[%emt 00:04:18]} 73. Kf3 {[%clk 00:25:32]} {[%emt 00:00:12]} 1/2-1/2